fUSD/lending_fUSD_20241112
["ID","MTS","AMOUNT","RATE_DAILY","PERIOD"]
[342070589,1731403832234,-2126.74996,0.0001268,2]
[342070590,1731403832250,-8850.8,0.0001268,2]
[342070591,1731403832263,-6778.47826702,0.0001268,2]
[342070842,1731403838058,-292.54731511,0.0001268,2]
[342070843,1731403838089,-4306.06961122,0.0001268,2]
[342070844,1731403838140,-3759.59763134,0.0001268,2]
[342070845,1731403838152,-585.25964156,0.0001268,2]
[342070846,1731403838224,-442013.74120596,0.0001268,2]
[342070847,1731403838233,-156.30265928,0.00012721,2]
[342070848,1731403838243,-156.30265928,0.00012766,2]
[342070849,1731403838254,-250.0,0.00012776,2]
[342070850,1731403838264,-581.71666119,0.00012799,2]
[342070851,1731403838273,-500.0,0.00012799,2]
[342070852,1731403838283,-500.0,0.00012799,2]
[342070853,1731403838293,-379.34815612,0.00012799,2]
[342070854,1731403838303,-348.80287373,0.00012799,2]
[342070855,1731403838312,-500.0,0.00012799,2]
[342070856,1731403838321,-217651.9094,0.000128,2]
[342070857,1731403838333,-768.6862288,0.000128,2]
[342070858,1731403838343,-156.30265928,0.0001281,2]
[342070859,1731403838356,-156.30265928,0.00012855,2]
[342070860,1731403838365,-3000.0,0.0001287,2]
[342070861,1731403838375,-946.79,0.00012889,2]
[342070862,1731403838384,-1947.7,0.00012889,2]
[342070863,1731403838395,-1011.17,0.00012891,2]
[342070864,1731403838405,-6292.171992,0.000129,2]
[342070865,1731403838414,-4051.2495,0.000129,2]
[342070866,1731403838423,-1756.2716,0.000129,2]
[342070868,1731403838436,-200.0,0.000129,2]
[342070870,1731403838447,-200.0,0.000129,2]
[342070872,1731403838456,-1314.8218,0.000129,2]
[342070874,1731403838465,-500.0,0.000129,2]
[342070875,1731403838475,-1000.0,0.000129,2]
[342070876,1731403838484,-8500.0,0.000129,2]
[342070877,1731403838493,-6601.72820771,0.000129,2]
[342070878,1731403838503,-479.48085372,0.000129,2]
[342070879,1731403838511,-1293.73230897,0.000129,2]
[342070880,1731403838522,-156.30265928,0.000129,2]
[342070881,1731403838532,-661.95040735,0.00012997,2]
[342070882,1731403838541,-2598.83755617,0.00012997,2]
[342070883,1731403838550,-1734.22559054,0.00012999,2]
[342070884,1731403838559,-278501.44916312,0.00013,2]
[342070885,1731403838572,-570.13742456,0.00013,2]
[342070887,1731403838589,-329.58,0.00013,2]
[342070889,1731403838600,-885.22,0.00013,2]
[342070891,1731403838612,-3404.8564865,0.00013,2]
[342070893,1731403838624,-638.38788,0.00013,2]
[342070894,1731403838636,-535.887672,0.00013,2]
[342070895,1731403838647,-816.45,0.00013,2]
[342070896,1731403838659,-646.63882765,0.00013,2]
[342070897,1731403838671,-509.02961,0.00013,2]
[342070898,1731403838682,-1409.12424,0.00013,2]
[342070899,1731403838694,-1100.9487451,0.00013,2]
[342070900,1731403838705,-1145.7484745,0.00013,2]
[342070901,1731403838716,-79397.34095636,0.00013,2]
[342070902,1731403838727,-995.85402049,0.00013,2]
[342070903,1731403838738,-4991.99197287,0.00013,2]
[342070904,1731403838749,-1506.25298975,0.00013,2]
[342070905,1731403838761,-1245.31841044,0.00013,2]
[342070906,1731403838776,-44188.8112539,0.00013,2]
[342070907,1731403838791,-1771.477287,0.00013,2]
[342070922,1731403840013,-852.813508,0.00012606,2]
[342070923,1731403840023,-200.0,0.000129,2]
[342070924,1731403840033,-1261.92950193,0.00013,2]
[342070925,1731403840044,-1017.89641427,0.00013,2]
[342070926,1731403840055,-1904.814,0.00013,2]
[342070927,1731403840066,-289636.30642017,0.00013,2]
[342070928,1731403840080,-88540.0,0.00013,2]
[342070929,1731403840155,-5408.79993869,0.00013,2]
[342070930,1731403840166,-434.59595316,0.00013,2]
[342070931,1731403840241,-40139.00648398,0.00013,2]
[342070932,1731403840253,-684.1663532,0.00013,2]
[342070933,1731403840264,-88240.74425803,0.00013,2]
[342070934,1731403840275,-2607.20000769,0.00013,2]
[342070939,1731403843152,-4960.83666804,0.00013,2]
[342070941,1731403843164,-1269.23399719,0.00013,2]
[342070943,1731403843242,-4062.9621425,0.00013,2]
[342070944,1731403843254,-3230.95,0.00013,2]
[342070945,1731403843265,-2063.01033956,0.00013,2]
[342070946,1731403843338,-13273.64617298,0.00013,2]
[342070947,1731403843352,-2982.26432061,0.00013,2]
[342070948,1731403843364,-2507.83415776,0.00013,2]
[342070949,1731403843376,-2994.885744,0.00013,2]
[342070950,1731403843387,-5666.34625102,0.00013,2]
[342070951,1731403843399,-44310.0,0.00013,2]
[342071120,1731403846041,-387728.81746678,0.00013,2]
[342071121,1731403846054,-63484.5,0.00013,2]
[342071122,1731403846130,-3098.565,0.00013,2]
[342071123,1731403846142,-27364.5354119,0.00013,2]
[342071124,1731403846215,-5233.11521278,0.00013,2]
[342071125,1731403846227,-969.48421792,0.00013,2]
[342071126,1731403846239,-330.04502048,0.00013,2]
[342071127,1731403846255,-6598.34246568,0.00013,2]
[342071128,1731403846336,-736.53433887,0.00013,2]
[342071129,1731403846348,-61839.9999999,0.00013,2]
[342071130,1731403846445,-771.94147786,0.00013,2]
[342071137,1731403858223,150.0,0.00011888,2]
[342071138,1731403858276,150.0,0.00011869,2]
[342071139,1731403886400,500.0,0.00027,60]
[342071140,1731403918751,150.0,0.00012309,2]
[342071141,1731403918806,-150.0,0.00012319,2]
[342071145,1731404078477,296.3,0.00012192,2]
[342071146,1731404165024,150.0,9.737e-05,2]
[342071147,1731404165047,150.0,9.737e-05,2]
[342071148,1731404165068,150.0,9.737e-05,2]
[342071149,1731404165090,265.53,9.737e-05,2]
[342071150,1731404165115,194.52,9.737e-05,2]
[342071151,1731404165223,910.05,0.00012001,2]
[342071152,1731404165800,13460.28375766,0.00027,60]
[342071153,1731404168005,-150.0,0.00012322,2]
[342071154,1731404171547,-150.0,0.0001233,2]
[342071155,1731404172798,-150.0,0.00012332,2]
[342071156,1731404173268,-150.0,0.00012332,2]
[342071157,1731404173682,-150.0,0.00012335,2]
[342071158,1731404208151,12015.07,0.00011761,2]
[342071159,1731404272980,1000.0,0.00011761,2]
[342071160,1731404284270,1165.53,0.00011758,2]
[342071163,1731404429163,200.0,0.00011,2]
[342071172,1731404660251,800.0,0.00011657,2]
[342071175,1731404764354,155.08364934,0.00027,60]
[342071176,1731404787779,250.0,0.0001176,2]
[342071177,1731404909231,843.54,9.73e-05,2]
[342071178,1731404909497,843.54,0.00011994,2]
[342071181,1731404953265,250.0,0.00011638,2]
[342071182,1731404983573,1000.0,0.00011627,2]
[342071189,1731405032181,-150.0,0.0001241,2]
[342071190,1731405032190,-150.0,0.00012433,2]
[342071191,1731405032200,-150.0,0.00012451,2]
[342071192,1731405032213,-150.0,0.00012467,2]
[342071193,1731405032223,-300.0,0.00012478,2]
[342071194,1731405032233,-861.56,0.00012479,2]
[342071195,1731405032244,-8989.70345754,0.00012479,2]
[342071196,1731405032253,-452.0343958,0.0001248,2]
[342071197,1731405032265,-405.35,0.0001248,2]
[342071198,1731405032686,-346.94366191,0.0001248,2]
[342071199,1731405032696,-150.0,0.00012503,2]
[342071200,1731405032704,-150.0,0.00012521,2]
[342071201,1731405032721,-1204.32805767,0.00012527,2]
[342071202,1731405032730,-150.0,0.00012544,2]
[342071203,1731405032739,-150.0,0.00012547,2]
[342071204,1731405032749,-226.97976737,0.00012565,2]
[342071205,1731405032763,-150.0,0.00012566,2]
[342071206,1731405032772,-161.85568269,0.00012573,2]
[342071207,1731405032782,-161.58642334,0.00012573,2]
[342071208,1731405032793,-162.84304747,0.00012573,2]
[342071209,1731405032802,-333.74807602,0.00012573,2]
[342071210,1731405032814,-220.77510781,0.00012573,2]
[342071211,1731405032824,-342.05050128,0.00012573,2]
[342071212,1731405032834,-314.91744435,0.00012573,2]
[342071701,1731405038198,-188.56030879,0.00012573,2]
[342071703,1731405038211,-500.0,0.00012573,2]
[342071705,1731405038220,-187.13420348,0.00012573,2]
[342071707,1731405038232,-312.86579652,0.00012573,2]
[342071709,1731405038242,-1204.32805767,0.00012573,2]
[342071711,1731405038251,-150.0,0.00012579,2]
[342071713,1731405038261,-2066.21669725,0.0001258,2]
[342071722,1731405038328,-3075.69549619,0.0001258,2]
[342071724,1731405038340,-2256.64611454,0.0001258,2]
[342071726,1731405038352,-993.47039983,0.0001258,2]
[342071728,1731405038363,-1863.94712924,0.0001258,2]
[342071730,1731405038374,-2808.81577378,0.0001258,2]
[342071733,1731405038384,-488.66430191,0.0001258,2]
[342071735,1731405038395,-8148.86189334,0.0001258,2]
[342071742,1731405038450,-43886.34864264,0.0001258,2]
[342071745,1731405038475,-690.60093551,0.0001258,2]
[342071747,1731405038486,-9364.42115503,0.0001258,2]
[342071749,1731405038497,-6821.36831515,0.0001258,2]
[342071751,1731405038508,-1755.77,0.0001258,2]
[342071752,1731405038519,-133431.08254559,0.0001258,2]
[342071753,1731405038528,-136671.9843,0.0001258,2]
[342071754,1731405038537,-150.0,0.00012595,2]
[342071755,1731405038546,-150.0,0.00012603,2]
[342071756,1731405038555,-150.0,0.00012607,2]
[342071757,1731405038563,-1204.32805767,0.0001262,2]
[342071758,1731405038572,-150.0,0.00012628,2]
[342071759,1731405038581,-150.0,0.00012652,2]
[342071760,1731405038590,-150.0,0.00012656,2]
[342071761,1731405038599,-1204.32805767,0.00012667,2]
[342071763,1731405038608,-150.0,0.0001267,2]
[342071765,1731405038617,-150.0,0.00012677,2]
[342071767,1731405038625,-150.0,0.00012693,2]
[342071769,1731405038634,-1204.32805767,0.00012713,2]
[342071771,1731405038643,-1500.0,0.00012732,2]
[342071773,1731405038652,-1204.32805767,0.0001276,2]
[342071775,1731405038661,-150.0,0.0001277,2]
[342071777,1731405038670,-150.0,0.00012781,2]
[342071779,1731405038678,-1204.32805767,0.00012807,2]
[342071781,1731405038687,-1204.32805767,0.00012853,2]
[342071783,1731405038696,-3000.0,0.0001287,2]
[342071785,1731405038706,-200.0,0.000129,2]
[342071786,1731405038718,-550.9001,0.000129,2]
[342071789,1731405038727,-1000.0,0.000129,2]
[342071791,1731405038736,-85638.5025,0.000129,2]
[342071792,1731405038747,-200.0,0.000129,2]
[342071794,1731405038758,-181.40962567,0.000129,2]
[342071796,1731405038768,-1142.695,0.000129,2]
[342071798,1731405038777,-159.023,0.000129,2]
[342071800,1731405038786,-362.27,0.000129,2]
[342071802,1731405038795,-5846.80872096,0.000129,2]
[342071804,1731405038804,-17208.31420706,0.000129,2]
[342071819,1731405038929,-2512.71029907,0.000129,2]
[342071821,1731405038940,-3932.90289479,0.000129,2]
[342071823,1731405038951,-867.57638522,0.000129,2]
[342071826,1731405038967,-2427.31090979,0.000129,2]
[342071828,1731405038976,-302.32,0.000129,2]
[342071831,1731405038986,-156.34097756,0.000129,2]
[342071836,1731405038997,-345.0,0.000129,2]
[342071839,1731405039008,-1240.737431,0.000129,2]
[342071841,1731405039019,-796.38418479,0.000129,2]
[342071867,1731405039265,-5697.54199451,0.000129,2]
[342071869,1731405039275,-367.5,0.000129,2]
[342071871,1731405039284,-1524.42,0.000129,2]
[342071873,1731405039293,-722.7,0.000129,2]
[342071875,1731405039303,-362.22,0.000129,2]
[342071877,1731405039312,-150.0,0.000129,2]
[342071879,1731405039321,-150.0,0.000129,2]
[342071881,1731405039330,-150.0,0.000129,2]
[342071883,1731405039339,-150.0,0.000129,2]
[342071885,1731405039348,-1204.32805767,0.000129,2]
[342071887,1731405039358,-718.31243863,0.000129,2]
[342071889,1731405039367,-638.78593645,0.000129,2]
[342071891,1731405039377,-901.71835119,0.000129,2]
[342071893,1731405039386,-608.23015029,0.00012973,2]
[342071895,1731405039396,-432.57950406,0.0001299,2]
[342071897,1731405039404,-432.57950406,0.0001299,2]
[342071899,1731405039414,-432.57950406,0.0001299,2]
[342071901,1731405039423,-1000.0,0.00012999,2]
[342071903,1731405039432,-500.0,0.00012999,2]
[342071905,1731405039441,-265.0,0.00012999,2]
[342071907,1731405039450,-500.0,0.00012999,2]
[342071909,1731405039461,-500.0,0.00012999,2]
[342071911,1731405039470,-409.95248234,0.00012999,2]
[342071913,1731405039480,-235.44566191,0.00012999,2]
[342071915,1731405039489,-1002.81942467,0.00012999,2]
[342071917,1731405039498,-616378.12371715,0.00013,2]
[342071919,1731405039510,-4026.7252268,0.00013,2]
[342072014,1731405040348,-409.33760561,0.00013,2]
[342072016,1731405040360,-15311.49506516,0.00013,2]
[342072018,1731405040372,-58286.76524412,0.00013,2]
[342072038,1731405040552,-309.4707929,0.00013,2]
[342072040,1731405040563,-5838.62769252,0.00013,2]
[342072049,1731405040666,-2509.59904615,0.00013,2]
[342072347,1731405043742,-4879.3805,0.00013,2]
[342072351,1731405043760,-2163.15426526,0.00013,2]
[342072354,1731405043777,-2000.0,0.00013,2]
[342072373,1731405043873,-4819.55379498,0.00013,2]
[342072376,1731405043885,-2981.57832507,0.00013,2]
[342072378,1731405043896,-1309.55710524,0.00013,2]
[342072381,1731405043907,-987.01726029,0.00013,2]
[342072385,1731405043919,-2941.58303115,0.00013,2]
[342072388,1731405043931,-2405.16626677,0.00013,2]
[342072391,1731405043942,-6687.38227579,0.00013,2]
[342072394,1731405043953,-2986.75830011,0.00013,2]
[342072397,1731405043971,-520.66468894,0.00013,2]
[342072401,1731405043983,-942.20694449,0.00013,2]
[342072407,1731405044016,-243568.32162708,0.00013,2]
[342072409,1731405044028,-4572.86815514,0.00013,2]
[342072411,1731405044040,-7608.29910617,0.00013,2]
[342072415,1731405044067,-16584.62125726,0.00013,2]
[342072601,1731405046172,-549.74893977,0.00013,2]
[342072611,1731405046269,-617.4045072,0.00013,2]
[342072612,1731405046282,-1765.63090226,0.00013,2]
[342072628,1731405046594,-235.4456619,0.00012999,2]
[342072630,1731405046604,-43637.55433815,0.00013,2]
[342072632,1731405046616,-6269.88458983,0.00013,2]
[342072634,1731405046627,-1760.79456,0.00013,2]
[342072654,1731405046829,-1335.39966,0.00013,2]
[342072695,1731405082534,161.427,0.00011,2]
[342072696,1731405086320,161.462,0.0001799,60]
[342072697,1731405086833,161.676,0.0001871,30]
[342072700,1731405380153,26850.0,0.000182,30]
[342072701,1731405472083,432.13,0.00012186,2]
[342072704,1731405540611,250.7,0.00027,60]
[342072705,1731405545953,250.0,0.00012186,2]
[342072709,1731405662177,1000.0,0.00012205,2]
[342072710,1731405705680,389.0,0.00027,60]
[342072711,1731405706669,862.3,0.00010309,2]
[342072712,1731405715913,1282.66,0.00012184,2]
[342072713,1731405731192,1000.0,0.00027,60]
[342072718,1731405980148,31000.0,0.00027,60]
[342072720,1731406136375,150.0,0.00012153,2]
[342072721,1731406169651,430.88,0.0001209,2]
[342072724,1731406218831,250.0,0.0001201,2]
[342072744,1731406231357,-403.1032,0.0001238,2]
[342072746,1731406231367,-17.7128,0.0001238,2]
[342072750,1731406231400,-477.34510901,0.0001238,2]
[342072751,1731406231410,-155.55279166,0.00012438,2]
[342072752,1731406231422,-339.50511731,0.00012438,2]
[342072753,1731406231431,-150.0,0.00012479,2]
[342072754,1731406231440,-116866.62500338,0.0001248,2]
[342072755,1731406231451,-2266.99100536,0.0001248,2]
[342072756,1731406231475,-1019.74276316,0.0001248,2]
[342072757,1731406231486,-638.1,0.0001248,2]
[342072758,1731406231497,-1968.71986481,0.0001248,2]
[342072759,1731406231508,-2161.1378117,0.0001248,2]
[342072760,1731406231520,-1267.56355159,0.0001248,2]
[342072761,1731406231529,-713.61769841,0.0001248,2]
[342072762,1731406231541,-11434.22840159,0.0001248,2]
[342072763,1731406231552,-6124.67159841,0.0001248,2]
[342072764,1731406231603,-58686.39460159,0.0001248,2]
[342072765,1731406231613,-23418.3945,0.0001248,2]
[342072766,1731406231622,-52186.0459,0.0001248,2]
[342072767,1731406231632,-495.05790897,0.00012496,2]
[342072768,1731406231641,-495.05790897,0.00012553,2]
[342072769,1731406231651,-862.3,0.00012573,2]
[342072770,1731406231660,-495.05790897,0.00012611,2]
[342072771,1731406231670,-495.05790897,0.00012669,2]
[342072772,1731406231680,-495.05790897,0.00012727,2]
[342072773,1731406231689,-495.05790897,0.00012784,2]
[342072774,1731406231699,-385.40032,0.000128,2]
[342072775,1731406231708,-246.14939571,0.000128,2]
[342072776,1731406231717,-246.14939568,0.00012814,2]
[342072777,1731406231727,-246.14939568,0.00012829,2]
[342072778,1731406231736,-495.05790897,0.00012842,2]
[342072779,1731406231745,-246.14939568,0.00012843,2]
[342072780,1731406231754,-246.14939568,0.00012857,2]
[342072781,1731406231763,-3000.0,0.0001287,2]
[342072782,1731406231772,-246.14939568,0.00012871,2]
[342072783,1731406231782,-246.14939568,0.00012886,2]
[342072784,1731406231791,-200.0,0.000129,2]
[342072785,1731406231801,-242.36518489,0.000129,2]
[342072786,1731406231811,-1960.43,0.000129,2]
[342072787,1731406231820,-433.11,0.000129,2]
[342072788,1731406231829,-150.0,0.000129,2]
[342072789,1731406231838,-495.05790897,0.000129,2]
[342072790,1731406231847,-150.0,0.000129,2]
[342072791,1731406231856,-762.97,0.000129,2]
[342072792,1731406231865,-150.0,0.000129,2]
[342072793,1731406231874,-300.0,0.000129,2]
[342072794,1731406231883,-8878.186249,0.000129,2]
[342072795,1731406231892,-246.14939568,0.000129,2]
[342072796,1731406231902,-5338.73460486,0.000129,2]
[342072797,1731406231911,-583.35,0.000129,2]
[342072798,1731406231920,-691.88658708,0.000129,2]
[342072799,1731406231929,-500.0,0.00012973,2]
[342072800,1731406231939,-500.0,0.00012973,2]
[342072801,1731406231948,-413.95305835,0.00012973,2]
[342072802,1731406231957,-187.51179109,0.00012999,2]
[342072803,1731406231966,-1000.0,0.00012999,2]
[342072804,1731406231976,-227589.30877957,0.00013,2]
[342072805,1731406231988,-351296.32078029,0.00013,2]
[342072806,1731406231999,-36829.77018318,0.00013,2]
[342072807,1731406232010,-437.1956,0.00013,2]
[342072808,1731406232739,-876.680784,0.00013,2]
[342072809,1731406232751,-31158.51966912,0.00013,2]
[342072810,1731406232762,-38991.0813538,0.00013,2]
[342072811,1731406232783,-1389.43379704,0.00013,2]
[342072816,1731406233024,-10846.93261847,0.00013,2]
[342072818,1731406233035,-193059.1312467,0.00013,2]
[342072971,1731406237500,-14083.54857365,0.00013,2]
[342072972,1731406237511,-587.36428,0.00013,2]
[342072973,1731406237549,-873.46,0.00013,2]
[342072974,1731406237573,-841.585481,0.00013,2]
[342072975,1731406237585,-692.937241,0.00013,2]
[342072976,1731406237600,-870.0,0.00013,2]
[342072977,1731406237611,-2646.527287,0.00013,2]
[342072978,1731406237704,-5248.47767933,0.00013,2]
[342072979,1731406237716,-7198.03990865,0.00013,2]
[342072980,1731406237727,-22028.03483989,0.00013,2]
[342072981,1731406237738,-4922.69943106,0.00013,2]
[342072982,1731406237749,-44349.40237509,0.00013,2]
[342072983,1731406237760,-11345.83705091,0.00013,2]
[342072984,1731406237814,-3771.37905141,0.00013,2]
[342072985,1731406237825,-8791.9989,0.00013,2]
[342073005,1731406239432,-478.80464092,0.00013,2]
[342073006,1731406239444,-1302.16514,0.00013,2]
[342073007,1731406239456,-1201.60939542,0.00013,2]
[342073008,1731406239536,-33704.32492685,0.00013,2]
[342073009,1731406240757,-253.95992459,0.00013,2]
[342073010,1731406240768,-68201.08386686,0.00013,2]
[342073011,1731406240779,-326.99765875,0.00013,2]
[342073012,1731406240791,-314.1,0.00013,2]
[342073013,1731406240877,-6450.0,0.00013,2]
[342073014,1731406240888,-994.21991209,0.00013,2]
[342073015,1731406240899,-166999.371188,0.00013,2]
[342073016,1731406240913,-1334.29,0.00013,2]
[342073054,1731406242443,-5626.26620489,0.00013,2]
[342073058,1731406242454,-14734.43130968,0.00013,2]
[342073064,1731406242466,-5892.62937874,0.00013,2]
[342073069,1731406242478,-8102.53137989,0.00013,2]
[342073073,1731406242490,-4781.54512109,0.00013,2]
[342073077,1731406242501,-10477.47538582,0.00013,2]
[342073080,1731406242527,-6027.77800024,0.00013,2]
[342073083,1731406242539,-14269.15685175,0.00013,2]
[342073085,1731406242551,-10840.555464,0.00013,2]
[342073088,1731406242563,-5870.98828464,0.00013,2]
[342073091,1731406242589,-2916.82177674,0.00013,2]
[342073093,1731406242601,-8769.24,0.00013,2]
[342073095,1731406242612,-8109.3798,0.00013,2]
[342073097,1731406242623,-8632.3381004,0.00013,2]
[342073100,1731406242634,-412.52367172,0.00013,2]
[342073102,1731406242646,-1744.63,0.00013,2]
[342073107,1731406242771,-7064.30375393,0.00013,2]
[342073108,1731406242783,-687.4962118,0.00013,2]
[342073109,1731406242794,-1985.10600271,0.00013,2]
[342073110,1731406242805,-22576.34343561,0.00013,2]
[342073111,1731406242817,-5792.38774302,0.00013,2]
[342073112,1731406242828,-4480.43277932,0.00013,2]
[342073113,1731406242839,-22127.42498274,0.00013,2]
[342073114,1731406242851,-2946.741287,0.00013,2]
[342073116,1731406242863,-32195.7360005,0.00013,2]
[342073121,1731406242901,-18129.47600922,0.00013,2]
[342073123,1731406242921,-24191.07270335,0.00013,2]
[342073125,1731406242933,-26161.7842409,0.00013,2]
[342073127,1731406242945,-11188.0238338,0.00013,2]
[342073130,1731406242957,-1318.2,0.00013,2]
[342073132,1731406242968,-1814.41885655,0.00013,2]
[342073134,1731406242980,-407.79766926,0.00013,2]
[342073258,1731406245458,-1120.23110249,0.00012999,3]
[342073259,1731406245467,-5418.81481804,0.00013,2]
[342073260,1731406245479,-305.9065296,0.00013,2]
[342073261,1731406245504,-1153.33092319,0.00013,2]
[342073262,1731406245516,-3350.10902224,0.00013,2]
[342073263,1731406245527,-345.43218425,0.00013,2]
[342073264,1731406245552,-274.9749505,0.00013,2]
[342073265,1731406245564,-3939.57391544,0.00013,2]
[342073266,1731406245575,-459.27711593,0.00013,2]
[342073267,1731406245610,-65180.75000005,0.00013,2]
[342073268,1731406245622,-3510.3618712,0.00013,2]
[342073269,1731406245634,-7930.0,0.00013,2]
[342073270,1731406245646,-4376.138,0.00013,2]
[342073271,1731406245658,-32250.55836913,0.00013,2]
[342073272,1731406245796,-12610.66504943,0.00013,2]
[342073273,1731406245809,-1502.77515542,0.00013,2]
[342073274,1731406245820,-659.05107,0.00013,2]
[342073275,1731406245832,-5446.49489758,0.00013,2]
[342073276,1731406245845,-7204.05308742,0.00013,2]
[342073278,1731406245856,-11867.2456,0.00013,2]
[342073358,1731406280162,-3000.0,0.00035952,120]
[342073359,1731406280189,-1000.0,0.00035952,30]
[342073360,1731406280213,-1300.0,0.00035952,30]
[342073361,1731406280239,-476.20990577,0.00035952,30]
[342073362,1731406280264,-1025.80900767,0.00035952,120]
[342073363,1731406280288,-1053.0,0.00035952,30]
[342073364,1731406280314,-3000.0,0.00035952,120]
[342073365,1731406280337,-3000.0,0.00035952,115]
[342073366,1731406280359,-1754.96704517,0.00035952,120]
[342073367,1731406280382,-1000.0,0.00035952,30]
[342073368,1731406280407,-1000.0,0.00035952,60]
[342073369,1731406280436,-1000.0,0.00035952,30]
[342073370,1731406280460,-1000.0,0.00035952,30]
[342073371,1731406280484,-1000.0,0.00035952,60]
[342073372,1731406280507,-1000.0,0.00035952,60]
[342073373,1731406280531,-1000.0,0.00035952,30]
[342073374,1731406280555,-1000.0,0.00035952,30]
[342073375,1731406280580,-1000.0,0.00035952,120]
[342073376,1731406280604,-1000.0,0.00035952,30]
[342073377,1731406280627,-1000.0,0.00035952,60]
[342073378,1731406280650,-1000.0,0.00035952,60]
[342073379,1731406280674,-1000.0,0.00035952,60]
[342073380,1731406280700,-1000.0,0.00035952,120]
[342073381,1731406280723,-1000.0,0.00035952,30]
[342073382,1731406280747,-1000.0,0.00035952,30]
[342073383,1731406280769,-1000.0,0.00035952,30]
[342073384,1731406280792,-1000.0,0.00035952,30]
[342073385,1731406280815,-1000.0,0.00035952,30]
[342073386,1731406280838,-1000.0,0.00035952,30]
[342073387,1731406280861,-1000.0,0.00035952,30]
[342073388,1731406280884,-1000.0,0.00035952,60]
[342073389,1731406280908,-1000.0,0.00035952,120]
[342073390,1731406280935,-1000.0,0.00035952,30]
[342073391,1731406280959,-1000.0,0.00035952,60]
[342073392,1731406280982,-1000.0,0.00035952,30]
[342073393,1731406281007,-1000.0,0.00035952,30]
[342073394,1731406281037,-1000.0,0.00035952,30]
[342073395,1731406281061,-1000.0,0.00035952,30]
[342073396,1731406281085,-1039.44,0.00035952,60]
[342073397,1731406281110,-501.8367659,0.00035952,120]
[342073398,1731406281134,-1053.0,0.00035952,30]
[342073399,1731406281158,-3896.57759999,0.00035952,120]
[342073400,1731406281186,-1053.0,0.00035952,30]
[342073401,1731406281209,-1053.0,0.00035952,30]
[342073402,1731406281234,-402.66993869,0.00035952,30]
[342073403,1731406281258,-1053.0,0.00035952,30]
[342073404,1731406281280,-1698.3,0.00035952,30]
[342073405,1731406281305,-502.79,0.00035952,120]
[342073406,1731406281329,-500.0,0.00035952,120]
[342073407,1731406281352,-500.0,0.00035952,120]
[342073408,1731406281376,-500.0,0.00035952,120]
[342073409,1731406281402,-500.0,0.00035952,120]
[342073410,1731406281426,-392.6109658,0.00035952,120]
[342073411,1731406281457,-500.0,0.00035952,120]
[342073412,1731406281483,-500.0,0.00035952,120]
[342073413,1731406281507,-500.0,0.00035952,120]
[342073414,1731406281753,-500.0,0.00035952,120]
[342073415,1731406281780,-500.0,0.00035952,120]
[342073416,1731406281808,-500.0,0.00035952,120]
[342073417,1731406281838,-500.0,0.00035952,120]
[342073418,1731406281874,-390.11379406,0.00035952,120]
[342073419,1731406281903,-500.46919587,0.00035952,120]
[342073420,1731406281935,-567.36864328,0.00035952,120]
[342073421,1731406281959,-500.0,0.00035952,120]
[342073422,1731406281983,-500.0,0.00035952,120]
[342073423,1731406282008,-500.0,0.00035952,120]
[342073424,1731406282033,-500.0,0.00035952,120]
[342073425,1731406282058,-500.0,0.00035952,120]
[342073426,1731406282082,-454.16018574,0.00035952,120]
[342073427,1731406282106,-500.0,0.00035952,120]
[342073428,1731406282130,-500.0,0.00035952,120]
[342073429,1731406282154,-500.0,0.00035952,120]